Workbook

Sheet Informe 3
A1: TELEFÓNICA DEL PERÚ S.A.A.-2017-2 REPORTE DE ACTIVO NO CORRIENTE-30052018
A3: Informe 3: IMPUTACIÓN DEL CAPITAL INVERTIDO A LAS LÍNEAS DE NEGOCIO
A5: Periodo de reporte: Al 31 de diciembre 2017
A6: En miles de nuevos soles
A8: Descripción PCR | B8: Código plan contable | C8: Código PCR | D8: 1. Acceso Instalación Telefonía Fija de Abonado Urbano | E8: 2. Prestación del servicio de voz Telefonía Fija local desde Abonado Urbano | F8: 3. Prestación del servicio de voz Telefonía Fija LD desde Abonado Urbano | G8: 4. Prestación del servicio de voz Telefonía Fija Local desde TUP Urbano | H8: 5. Prestación del servicio de voz Telefonía Fija LD desde TUP Urbano | I8: 6. Acceso Instalación Telefonía Fija de Abonado Rural | J8: 7. Prestación del servicio de voz Telefonía Fija Local desde Abonado Rural | K8: 8. Prestación del servicio de voz Telefonía Fija LD desde Abonado Rural | L8: 9. Prestación del servicio de voz Telefonía Fija Local desde TUP Rural | M8: 10. Prestación del servicio de voz Telefonía Fija LD desde TUP Rural | N8: 11. Instalación Televisión de Paga | O8: 12. Prestación de servicios Televisión de Paga | P8: 13. Instalación Internet Fijo | Q8: 14. Prestación de servicios Internet Fijo | R8: 15. Prestación de servicio voz móvil por Telefonía Móvil | S8: 16. Mensajes de Texto Telefonía Móvil | T8: 17. Roaming Internacional por Telefonía Móvil | U8: 18. Prestación de Internet Móvil | V8: 19. Servicios Suplementarios | W8: 20. Servicios de valor añadido (No incluye Internet) | X8: 21. Suministro de Equipos | Y8: 22. Instalación para Alquiler de circuitos y Transmisión de Datos para clientes privados y otros operadores | Z8: 23. Alquiler de Circuitos y Transmisión de Datos a clientes privados y otros operadores | AA8: 24. Provisión de acceso a EEDE | AB8: 25. Interconexión | AC8: Total | AD8: Número de nota
A10: CAPITAL DE TRABAJO | D10: =+D11-D12 -> -2.630853616 | E10: =+E11-E12 -> -2251.168011 | F10: -147.8267626 | G10: -214.0887694 | H10: -5.475020015 | I10: 0 | J10: -0.6451520358 | K10: -0.04226380369 | L10: -14.86015286 | M10: -0.5486390573 | N10: -3.248323332 | O10: -3528.109008 | P10: -0.479245586 | Q10: -5511.805587 | R10: -5748.725491 | S10: -273.4829482 | T10: -47.76596449 | U10: -8074.170851 | V10: -15.56481996 | W10: -761.571546 | X10: -3906.724161 | Y10: -13.17527397 | Z10: -2421.895477 | AA10: -7.945656048 | AB10: -2251.371574 | AC10: =SUM(D10:AB10) -> -35203.32155 | AD10: 3.1
A11: ACTIVO CORRIENTE | D11: 192.9933449 | E11: 165140.4858 | F11: 10844.22987 | G11: 15705.05765 | H11: 401.6348227 | I11: 0 | J11: 47.32686325 | K11: 3.100375023 | L11: 1090.106491 | M11: 40.24689406 | N11: 238.289497 | O11: 258813.928 | P11: 35.15634928 | Q11: 404333.3273 | R11: 421713.2243 | S11: 20062.07742 | T11: 3504.000831 | U11: 592302.5249 | V11: 1141.799243 | W11: 55867.12963 | X11: 286588.2612 | Y11: 966.5076678 | Z11: 177664.6584 | AA11: 582.8749757 | AB11: 165155.4188 | AC11: =SUM(D11:AB11) -> 2582434.361
A12: PASIVO CORRIENTE | D12: 195.6241985 | E12: 167391.6538 | F12: 10992.05663 | G12: 15919.14642 | H12: 407.1098427 | I12: 0 | J12: 47.97201529 | K12: 3.142638827 | L12: 1104.966644 | M12: 40.79553312 | N12: 241.5378204 | O12: 262342.037 | P12: 35.63559487 | Q12: 409845.1329 | R12: 427461.9498 | S12: 20335.56037 | T12: 3551.766795 | U12: 600376.6957 | V12: 1157.364063 | W12: 56628.70117 | X12: 290494.9853 | Y12: 979.6829418 | Z12: 180086.5538 | AA12: 590.8206318 | AB12: 167406.7903 | AC12: 2617637.682
A14: ACTIVO FIJO NETO | D14: 22.91116341 | E14: 1116836.094 | F14: 27808.24753 | G14: 64219.40596 | H14: 1037.225189 | I14: 1.53380571e-05 | J14: 570.7552359 | K14: 0.31069823 | L14: 1912.116068 | M14: 43.62063942 | N14: 26.19906874 | O14: 405225.157 | P14: 5.070023917 | Q14: 1033242.428 | R14: 1444500.127 | S14: 2486.161676 | T14: 136202.7731 | U14: 1687820.211 | V14: 4938.099478 | W14: 5824.947475 | X14: 115427.3546 | Y14: 96.85674136 | Z14: 42310.53593 | AA14: 58.44792046 | AB14: 17303.55571 | AC14: 6107918.611
A15: Activo Fijo Neto | C15: 30 | D15: 22.91116341 | E15: 1116836.094 | F15: 27808.24753 | G15: 64219.40596 | H15: 1037.225189 | I15: 1.53380571e-05 | J15: 570.7552359 | K15: 0.31069823 | L15: 1912.116068 | M15: 43.62063942 | N15: 26.19906874 | O15: 405225.157 | P15: 5.070023917 | Q15: 1033242.428 | R15: 1444500.127 | S15: 2486.161676 | T15: 136202.7731 | U15: 1687820.211 | V15: 4938.099478 | W15: 5824.947475 | X15: 115427.3546 | Y15: 96.85674136 | Z15: 42310.53593 | AA15: 58.44792046 | AB15: 17303.55571 | AC15: 6107918.611
A16: Planta y Equipo de Comunicaciones | C16: 301 | D16: =+D17+D25+D26+D35+D42 -> 0.3605555355 | E16: =+E17+E25+E26+E35+E42 -> 944044.27 | F16: 17633.83684 | G16: 54060.48321 | H16: 673.2572569 | I16: 0 | J16: 477.9721605 | K16: 0.005792206863 | L16: 1549.879244 | M16: 27.48829114 | N16: 0.445179067 | O16: 324687.5539 | P16: 0.0656800697 | Q16: 794873.0739 | R16: 759816.0607 | S16: 490.8936282 | T16: 98493.3767 | U16: 1267210.215 | V16: 2915.515938 | W16: 250.902694 | X16: 87141.90397 | Y16: 1.805656511 | Z16: 23350.07186 | AA16: 1.088943244 | AB16: 809.038201 | AC16: 4378509.565
A17: Equipos terminales | B17: Anexo 1 | C17: 3011 | D17: 0 | E17: 0 | F17: 0 | G17: 0 | H17: 0 | I17: 0 | J17: 0 | K17: 0 | L17: 0 | M17: 0 | N17: 0 | O17: 0 | P17: 0 | Q17: 0 | R17: 0 | S17: 0 | T17: 0 | U17: 0 | V17: 0 | W17: 0 | X17: 57504.68878 | Y17: 0 | Z17: 0 | AA17: 0 | AB17: 0 | AC17: 57504.68878
A18: Equipos terminales - Teléfonos de Abonados | B18: Anexo 1 | C18: 30111 | D18: 0 | E18: 0 | F18: 0 | G18: 0 | H18: 0 | I18: 0 | J18: 0 | K18: 0 | L18: 0 | M18: 0 | N18: 0 | O18: 0 | P18: 0 | Q18: 0 | R18: 0 | S18: 0 | T18: 0 | U18: 0 | V18: 0 | W18: 0 | X18: 0 | Y18: 0 | Z18: 0 | AA18: 0 | AB18: 0 | AC18: 0
A19: Equipos terminales - Teléfonos Públicos | B19: Anexo 1 | C19: 30112 | D19: 0 | E19: 0 | F19: 0 | G19: 0 | H19: 0 | I19: 0 | J19: 0 | K19: 0 | L19: 0 | M19: 0 | N19: 0 | O19: 0 | P19: 0 | Q19: 0 | R19: 0 | S19: 0 | T19: 0 | U19: 0 | V19: 0 | W19: 0 | X19: 1427.069005 | Y19: 0 | Z19: 0 | AA19: 0 | AB19: 0 | AC19: 1427.069005
A20: Equipos Terminales - Televisión de Paga | B20: Anexo 1 | C20: 30113 | D20: 0 | E20: 0 | F20: 0 | G20: 0 | H20: 0 | I20: 0 | J20: 0 | K20: 0 | L20: 0 | M20: 0 | N20: 0 | O20: 0 | P20: 0 | Q20: 0 | R20: 0 | S20: 0 | T20: 0 | U20: 0 | V20: 0 | W20: 0 | X20: 0 | Y20: 0 | Z20: 0 | AA20: 0 | AB20: 0 | AC20: 0
A21: Equipos Terminales - Internet Fijo | B21: Anexo 1 | C21: 30114 | D21: 0 | E21: 0 | F21: 0 | G21: 0 | H21: 0 | I21: 0 | J21: 0 | K21: 0 | L21: 0 | M21: 0 | N21: 0 | O21: 0 | P21: 0 | Q21: 0 | R21: 0 | S21: 0 | T21: 0 | U21: 0 | V21: 0 | W21: 0 | X21: 48540.01001 | Y21: 0 | Z21: 0 | AA21: 0 | AB21: 0 | AC21: 48540.01001
A22: Equipos Terminales - Telefonía Móvil | B22: Anexo 1 | C22: 30115 | D22: 0 | E22: 0 | F22: 0 | G22: 0 | H22: 0 | I22: 0 | J22: 0 | K22: 0 | L22: 0 | M22: 0 | N22: 0 | O22: 0 | P22: 0 | Q22: 0 | R22: 0 | S22: 0 | T22: 0 | U22: 0 | V22: 0 | W22: 0 | X22: 0 | Y22: 0 | Z22: 0 | AA22: 0 | AB22: 0 | AC22: 0
A23: Equipos Terminales - Internet Móvil | B23: Anexo 1 | C23: 30116 | D23: 0 | E23: 0 | F23: 0 | G23: 0 | H23: 0 | I23: 0 | J23: 0 | K23: 0 | L23: 0 | M23: 0 | N23: 0 | O23: 0 | P23: 0 | Q23: 0 | R23: 0 | S23: 0 | T23: 0 | U23: 0 | V23: 0 | W23: 0 | X23: 0 | Y23: 0 | Z23: 0 | AA23: 0 | AB23: 0 | AC23: 0
A24: Otros Equipos Terminales | B24: Anexo 1 | C24: 30117 | D24: 0 | E24: 0 | F24: 0 | G24: 0 | H24: 0 | I24: 0 | J24: 0 | K24: 0 | L24: 0 | M24: 0 | N24: 0 | O24: 0 | P24: 0 | Q24: 0 | R24: 0 | S24: 0 | T24: 0 | U24: 0 | V24: 0 | W24: 0 | X24: 7537.609774 | Y24: 0 | Z24: 0 | AA24: 0 | AB24: 0 | AC24: 7537.609774
A25: Planta y Equipos de Acceso Local | B25: Anexo 1 | C25: 3012 | D25: 0 | E25: 690952.0863 | F25: 2473.281976 | G25: 35425.09319 | H25: 83.55297785 | I25: 0 | J25: 369.8258162 | K25: 0 | L25: 1040.58273 | M25: 3.037677232 | N25: 0 | O25: 110536.8906 | P25: 0 | Q25: 23635.71455 | R25: 328262.344 | S25: 12.49375298 | T25: 54734.17573 | U25: 607632.8302 | V25: 364.1565741 | W25: 26.81852066 | X25: 0 | Y25: 0 | Z25: 946.2905493 | AA25: 0 | AB25: 39.22451508 | AC25: 1856538.4
A26: Equipos Centrales y de agregación | C26: 3013 | D26: =SUM(D27:D34) -> 0 | E26: =SUM(E27:E34) -> 94553.36166 | F26: 5521.285197 | G26: 6206.224113 | H26: 117.7384339 | I26: 0 | J26: 15.87654484 | K26: 0 | L26: 59.97272495 | M26: 2.872017846 | N26: 0 | O26: 88765.61352 | P26: 0 | Q26: 221277.4706 | R26: 302045.5114 | S26: 436.5218156 | T26: 18410.61984 | U26: 366161.9965 | V26: 461.9404772 | W26: 11.15335683 | X26: 28039.7958 | Y26: 0 | Z26: 13863.4267 | AA26: 0 | AB26: 78.7370568 | AC26: 1146030.118
A27: Equipos Centrales Locales | B27: Anexo 1 | C27: 30131 | D27: 0 | E27: 66907.61002 | F27: 4047.278048 | G27: 4525.014909 | H27: 68.48511112 | I27: 0 | J27: 0 | K27: 0 | L27: 0 | M27: 0 | N27: 0 | O27: 0 | P27: 0 | Q27: 0 | R27: 106539.7692 | S27: 1.813028707 | T27: 14490.45656 | U27: 29316.08049 | V27: 432.8821696 | W27: 0 | X27: 0 | Y27: 0 | Z27: 0 | AA27: 0 | AB27: 50.66108665 | AC27: 226380.0507
A28: Equipos Centrales de Larga Distancia Nacional | B28: Anexo 1 | C28: 30132 | D28: 0 | E28: 0 | F28: 0 | G28: 0 | H28: 0 | I28: 0 | J28: 0 | K28: 0 | L28: 0 | M28: 0 | N28: 0 | O28: 0 | P28: 0 | Q28: 0 | R28: 0 | S28: 0 | T28: 0 | U28: 0 | V28: 0 | W28: 0 | X28: 0 | Y28: 0 | Z28: 0 | AA28: 0 | AB28: 0 | AC28: 0
A29: Equipos Centrales de Larga Distancia Internacional | B29: Anexo 1 | C29: 30133 | D29: 0 | E29: 0 | F29: 0 | G29: 0 | H29: 0 | I29: 0 | J29: 0 | K29: 0 | L29: 0 | M29: 0 | N29: 0 | O29: 0 | P29: 0 | Q29: 0 | R29: 0 | S29: 0 | T29: 0 | U29: 0 | V29: 0 | W29: 0 | X29: 0 | Y29: 0 | Z29: 0 | AA29: 0 | AB29: 0 | AC29: 0
A30: Controladores | B30: Anexo 1 | C30: 30134 | D30: 0 | E30: 3278.19045 | F30: 0 | G30: 185.2025982 | H30: 0 | I30: 0 | J30: 0 | K30: 0 | L30: 0 | M30: 0 | N30: 0 | O30: 0 | P30: 0 | Q30: 0 | R30: 46118.06376 | S30: 1.584149302 | T30: 0 | U30: 181154.6109 | V30: 0 | W30: 0 | X30: 0 | Y30: 0 | Z30: 732.6881419 | AA30: 0 | AB30: 0 | AC30: 231470.34
A31: Gateways | B31: Anexo 1 | C31: 30135 | D31: 0 | E31: 0 | F31: 0 | G31: 0 | H31: 0 | I31: 0 | J31: 0 | K31: 0 | L31: 0 | M31: 0 | N31: 0 | O31: 0 | P31: 0 | Q31: 0 | R31: 0 | S31: 0 | T31: 0 | U31: 0 | V31: 0 | W31: 0 | X31: 0 | Y31: 0 | Z31: 0 | AA31: 0 | AB31: 0 | AC31: 0
A32: Cabeceras | B32: Anexo 1 | C32: 30136 | D32: 0 | E32: 0 | F32: 0 | G32: 0 | H32: 0 | I32: 0 | J32: 0 | K32: 0 | L32: 0 | M32: 0 | N32: 0 | O32: 0 | P32: 0 | Q32: 0 | R32: 0 | S32: 0 | T32: 0 | U32: 0 | V32: 0 | W32: 0 | X32: 0 | Y32: 0 | Z32: 0 | AA32: 0 | AB32: 0 | AC32: 0
A33: Transmisión de Datos (Servicio Final) | B33: Anexo 1 | C33: 30137 | D33: 0 | E33: 18296.7893 | F33: 1106.782826 | G33: 1007.895806 | H33: 37.96909281 | I33: 0 | J33: 14.4909317 | K33: 0 | L33: 41.55147593 | M33: 1.983622937 | N33: 0 | O33: 87908.38227 | P33: 0 | Q33: 217695.3544 | R33: 129370.7829 | S33: 0.03487440827 | T33: 1182.205904 | U33: 77826.33128 | V33: 10.87677758 | W33: 0.4676278931 | X33: 28039.7958 | Y33: 0 | Z33: 13107.72467 | AA33: 0 | AB33: 26.1264728 | AC33: 575675.5461
A34: Otros equipos centrales | B34: Anexo 1 | C34: 30138 | D34: 0 | E34: 6070.771895 | F34: 367.2243235 | G34: 488.1107987 | H34: 11.28422999 | I34: 0 | J34: 1.385613138 | K34: 0 | L34: 18.42124902 | M34: 0.8883949086 | N34: 0 | O34: 857.2312556 | P34: 0 | Q34: 3582.116155 | R34: 20016.89549 | S34: 433.0897632 | T34: 2737.957369 | U34: 77864.97383 | V34: 18.18152999 | W34: 10.68572894 | X34: 0 | Y34: 0 | Z34: 23.0138903 | AA34: 0 | AB34: 1.949497357 | AC34: 112504.181
A35: Transmisión (Gran capacidad) | C35: 3014 | D35: =SUM(D36:D41) -> 0 | E35: =SUM(E36:E41) -> 45010.30858 | F35: 2770.270642 | G35: 6196.135997 | H35: 237.5123205 | I35: 0 | J35: 2.854833576 | K35: 0 | L35: 192.7500188 | M35: 9.352072397 | N35: 0 | O35: 113069.7223 | P35: 0 | Q35: 443396.3163 | R35: 26786.7165 | S35: 0.9056150937 | T35: 624.6620299 | U35: 177873.8841 | V35: 608.998542 | W35: 93.68283955 | X35: 0 | Y35: 0 | Z35: 7724.937788 | AA35: 0 | AB35: 221.0098131 | AC35: 824820.0202
A36: Cables de Transmisión (excluidos internacional) | B36: Anexo 1 | C36: 30141 | D36: 0 | E36: 17479.48653 | F36: 1057.343733 | G36: 2415.102806 | H36: 90.98089504 | I36: 0 | J36: 0.9668588369 | K36: 0 | L36: 70.01610109 | M36: 3.342493642 | N36: 0 | O36: 57505.80744 | P36: 0 | Q36: 149907.413 | R36: 7809.259491 | S36: 0.2675284305 | T36: 56.00902111 | U36: 56379.89906 | V36: 259.733701 | W36: 40.07711443 | X36: 0 | Y36: 0 | Z36: 1117.345371 | AA36: 0 | AB36: 94.64752241 | AC36: 294287.6986
A37: Equipos de Transmisión (excluidos internacional) | B37: Anexo 1 | C37: 30142 | D37: 0 | E37: 18434.50397 | F37: 1115.113262 | G37: 2547.206264 | H37: 95.95744957 | I37: 0 | J37: 1.018347756 | K37: 0 | L37: 73.84468148 | M37: 3.525265967 | N37: 0 | O37: 43896.47584 | P37: 0 | Q37: 158111.74 | R37: 62.74304814 | S37: 0.002149441853 | T37: 0.4500012725 | U37: 452.9810701 | V37: 273.9512977 | W37: 42.27090079 | X37: 0 | Y37: 0 | Z37: 5545.488602 | AA37: 0 | AB37: 99.82844543 | AC37: 230757.1006
A38: Equipos de Transmisión Radio | B38: Anexo 1 | C38: 30143 | D38: 0 | E38: 8821.809383 | F38: 533.6360909 | G38: 1218.96245 | H38: 45.92032042 | I38: 0 | J38: 0.2667984595 | K38: 0 | L38: 20.48811567 | M38: 0.9780806885 | N38: 0 | O38: 11500.5037 | P38: 0 | Q38: 75664.1803 | R38: 13516.96514 | S38: 0.4630621472 | T38: 12.79310079 | U38: 97587.37442 | V38: 71.77291237 | W38: 11.07461685 | X38: 0 | Y38: 0 | Z38: 563.9594903 | AA38: 0 | AB38: 26.15420451 | AC38: 209597.3022
A39: Equipos de Transmisión por Satélite | B39: Anexo 1 | C39: 30144 | D39: 0 | E39: 0 | F39: 0 | G39: 0 | H39: 0 | I39: 0 | J39: 0.3831399057 | K39: 0 | L39: 27.78308701 | M39: 1.326334804 | N39: 0 | O39: 0 | P39: 0 | Q39: 59487.45588 | R39: 3098.961564 | S39: 0.1061637566 | T39: 22.22615395 | U39: 22373.33007 | V39: 0 | W39: 0 | X39: 0 | Y39: 0 | Z39: 443.3870183 | AA39: 0 | AB39: 0 | AC39: 85454.95941
A40: Cables y Equipos internacionales (excluyendo satélite) | B40: Anexo 1 | C40: 30145 | D40: 0 | E40: 0 | F40: 47.5723743 | G40: 0 | H40: 4.093686144 | I40: 0 | J40: 0 | K40: 0 | L40: 0 | M40: 0.1503930389 | N40: 0 | O40: 0 | P40: 0 | Q40: 0 | R40: 351.391101 | S40: 0 | T40: 0 | U40: 0 | V40: 0 | W40: 0 | X40: 0 | Y40: 0 | Z40: 50.27563244 | AA40: 0 | AB40: 0 | AC40: 453.483187
A41: Otros equipos de transmisión | B41: Anexo 1 | C41: 30146 | D41: 0 | E41: 274.5086997 | F41: 16.60518189 | G41: 14.86447732 | H41: 0.5599693095 | I41: 0 | J41: 0.2196886184 | K41: 0 | L41: 0.6180335126 | M41: 0.02950425765 | N41: 0 | O41: 166.9353158 | P41: 0 | Q41: 225.5270694 | R41: 1947.396156 | S41: 0.06671131758 | T41: 533.1837528 | U41: 1080.299458 | V41: 3.540630874 | W41: 0.2602074798 | X41: 0 | Y41: 0 | Z41: 4.481674015 | AA41: 0 | AB41: 0.3796407967 | AC41: 4269.476171
A42: Otros Activos Fijos Brutos de Comunicaciones | C42: 3015 | D42: =SUM(D43:D47) -> 0.3605555355 | E42: =SUM(E43:E47) -> 113528.5135 | F42: 6868.999028 | G42: 6233.029914 | H42: 234.4535246 | I42: 0 | J42: 89.41496586 | K42: 0.005792206863 | L42: 256.5737696 | M42: 12.22652366 | N42: 0.445179067 | O42: 12315.32745 | P42: 0.0656800697 | Q42: 106563.5725 | R42: 102721.4888 | S42: 40.97244449 | T42: 24723.91911 | U42: 115541.5043 | V42: 1480.420345 | W42: 119.247977 | X42: 1597.419385 | Y42: 1.805656511 | Z42: 815.4168237 | AA42: 1.088943244 | AB42: 470.066816 | AC42: 493616.339
A43: Equipos de Fuerza (Planta Energía Eléctrica) | B43: Anexo 1 | C43: 30151 | D43: 0 | E43: 113171.1676 | F43: 6845.786034 | G43: 6128.149147 | H43: 230.8574579 | I43: 0 | J43: 90.57059933 | K43: 0 | L43: 254.7954739 | M43: 12.1636629 | N43: 0 | O43: 10095.8301 | P43: 0 | Q43: 83867.88178 | R43: 101398.2438 | S43: 3.473566702 | T43: 27762.14587 | U43: 56249.70938 | V43: 1459.689003 | W43: 13.85141315 | X43: 0 | Y43: 0 | Z43: 271.0404279 | AA43: 0 | AB43: 156.5137727 | AC43: 408011.869
A44: Sistema de gestión de Red | B44: Anexo 1 | C44: 30152 | D44: 0 | E44: 716.7399436 | F44: 43.35599252 | G44: 104.0423348 | H44: 3.91944588 | I44: 0 | J44: 0.0395937159 | K44: 0 | L44: 3.079248639 | M44: 0.1470000305 | N44: 0 | O44: 2487.494556 | P44: 0 | Q44: 20815.77919 | R44: 9108.296059 | S44: 0.3120199396 | T44: 2493.789186 | U44: 28682.98 | V44: 27.21144211 | W44: 2.860541073 | X44: 0 | Y44: 0 | Z44: 242.187774 | AA44: 0 | AB44: 5.657007991 | AC44: 64737.89133
A45: Equipos para Interconexión | B45: Anexo 1 | C45: 30153 | D45: 0 | E45: 0 | F45: 0 | G45: 0 | H45: 0 | I45: 0 | J45: 0 | K45: 0 | L45: 0 | M45: 0 | N45: 0 | O45: 0 | P45: 0 | Q45: 0 | R45: 0 | S45: 0 | T45: 0 | U45: 0 | V45: 0 | W45: 0 | X45: 0 | Y45: 0 | Z45: 0 | AA45: 0 | AB45: 0 | AC45: 0
A46: Equipos para Circuitos Alquilados | B46: Anexo 1 | C46: 30154 | D46: 0 | E46: 0 | F46: 0 | G46: 0 | H46: 0 | I46: 0 | J46: 0 | K46: 0 | L46: 0 | M46: 0 | N46: 0 | O46: 0 | P46: 0 | Q46: 0 | R46: 0 | S46: 0 | T46: 0 | U46: 0 | V46: 0 | W46: 0 | X46: 1055.80209 | Y46: 0 | Z46: 0 | AA46: 0 | AB46: 0 | AC46: 1055.80209
A47: Otros | B47: Anexo 1 | C47: 30155 | D47: 0.3605555355 | E47: -359.3940562 | F47: -20.14299888 | G47: 0.8384322357 | H47: -0.3233791548 | I47: 0 | J47: -1.195227178 | K47: 0.005792206863 | L47: -1.300952947 | M47: -0.0841392719 | N47: 0.445179067 | O47: -267.997205 | P47: 0.0656800697 | Q47: 1879.911545 | R47: -7785.050999 | S47: 37.18685785 | T47: -5532.015946 | U47: 30608.8149 | V47: -6.480100151 | W47: 102.5360227 | X47: 541.6172949 | Y47: 1.805656511 | Z47: 302.1886218 | AA47: 1.088943244 | AB47: 307.8960353 | AC47: 19810.77652
A48: Terreno, Edificios, Planta y Equipos no de Telecomunicaciones | C48: 302 | D48: =SUM(D49:D55) -> 22.55060788 | E48: =SUM(E49:E55) -> 172791.8235 | F48: 10174.41069 | G48: 10158.92275 | H48: 363.9679323 | I48: 1.53380571e-05 | J48: 92.78307538 | K48: 0.3049060232 | L48: 362.2368246 | M48: 16.13234828 | N48: 25.75388967 | O48: 80537.60306 | P48: 5.004343847 | Q48: 238369.3544 | R48: 684684.0663 | S48: 1995.268048 | T48: 37709.39639 | U48: 420609.9961 | V48: 2022.58354 | W48: 5574.044781 | X48: 28285.45064 | Y48: 95.05108485 | Z48: 18960.46407 | AA48: 57.35897722 | AB48: 16494.51751 | AC48: 1729409.046
A49: Terrenos | B49: Anexo 1 | C49: 3021 | D49: 5.966820237 | E49: 44618.30081 | F49: 2725.413283 | G49: 2674.026667 | H49: 94.86069207 | I49: 0 | J49: 21.27249681 | K49: 0.0958550174 | L49: 91.67116002 | M49: 4.011656798 | N49: 7.367251934 | O49: 19479.93921 | P49: 1.086937047 | Q49: 68189.39568 | R49: 150555.1084 | S49: 624.974797 | T49: 8164.3193 | U49: 96331.08643 | V49: 546.0794079 | W49: 1744.164609 | X49: 8860.516085 | Y49: 29.88174289 | Z49: 5801.050342 | AA49: 18.02088151 | AB49: 5163.13982 | AC49: 415751.7503
A50: Edificios | B50: Anexo 1 | C50: 3022 | D50: 12.84123695 | E50: 122022.8789 | F50: 7076.576578 | G50: 7144.189708 | H50: 256.4912735 | I50: 0 | J50: 66.31520945 | K50: 0.2062902757 | L50: 255.0543778 | M50: 11.39130812 | N50: 15.85511613 | O50: 57526.52923 | P50: 2.339205074 | Q50: 163201.8216 | R50: 486816.3009 | S50: 1350.589955 | T50: 17570.49057 | U50: 297629.6624 | V50: 1398.534151 | W50: 3770.040923 | X50: 19068.7807 | Y50: 64.30871484 | Z50: 12903.38893 | AA50: 38.78286934 | AB50: 11135.57501 | AC50: 1209338.945
A51: Vehículos y Ayudas Mécanicas | B51: Anexo 1 | C51: 3023 | D51: 3.572818565 | E51: 47.08894115 | F51: 2.461678989 | G51: 2.864329987 | H51: 0.05600135663 | I51: 1.53380571e-05 | J51: 0.7213393769 | K51: 3.403898451e-05 | L51: 2.019488394 | M51: 0.09567152138 | N51: 2.321952813 | O51: 37.12865317 | P51: 1.547282723 | Q51: 74.14213621 | R51: 164.073199 | S51: 0.4568247472 | T51: 5.955552968 | U51: 129.5675322 | V51: 0.08254322642 | W51: 5.642269798 | X51: 104.1076761 | Y51: 0.01061127744 | Z51: 12.08189348 | AA51: 0.04260449805 | AB51: 42.24622387 | AC51: 638.2872748
A52: Equipos Sistemas Informáticos | B52: Anexo 1 | C52: 3024 | D52: 0 | E52: 4834.342977 | F52: 292.4320597 | G52: 261.7767 | H52: 9.861558858 | I52: 0 | J52: 3.868912463 | K52: 0 | L52: 10.88412125 | M52: 0.5195962857 | N52: 0 | O52: 2939.879765 | P52: 0 | Q52: 4964.279873 | R52: 42865.8944 | S52: 1.468443021 | T52: 11736.38881 | U52: 23779.4464 | V52: 62.35366682 | W52: 4.582485743 | X52: 0 | Y52: 0 | Z52: 78.92627565 | AA52: 0 | AB52: 6.68581295 | AC52: 91853.59185
A53: Edificios en arrendamiento financiero | B53: Anexo 1 | C53: 3025 | D53: 0 | E53: 0 | F53: 0 | G53: 0 | H53: 0 | I53: 0 | J53: 0 | K53: 0 | L53: 0 | M53: 0 | N53: 0 | O53: 0 | P53: 0 | Q53: 0 | R53: 0 | S53: 0 | T53: 0 | U53: 0 | V53: 0 | W53: 0 | X53: 0 | Y53: 0 | Z53: 0 | AA53: 0 | AB53: 0 | AC53: 0
A54: Otros activos bajo la forma de arrendamiento o leasing (NIC 17) | B54: Anexo 1 | C54: 3026 | D54: 0 | E54: 0 | F54: 0 | G54: 0 | H54: 0 | I54: 0 | J54: 0 | K54: 0 | L54: 0 | M54: 0 | N54: 0 | O54: 0 | P54: 0 | Q54: 0 | R54: 0 | S54: 0 | T54: 0 | U54: 0 | V54: 0 | W54: 0 | X54: 0 | Y54: 0 | Z54: 0 | AA54: 0 | AB54: 0 | AC54: 0
A55: Otros Activos no de comunicaciones | B55: Anexo 1 | C55: 3027 | D55: 0.1697321234 | E55: 1269.211848 | F55: 77.52708565 | G55: 76.06534237 | H55: 2.69840653 | I55: 0 | J55: 0.6051172834 | K55: 0.002726691101 | L55: 2.607677125 | M55: 0.114115559 | N55: 0.2095687929 | O55: 554.1262037 | P55: 0.03091900303 | Q55: 1939.715034 | R55: 4282.689475 | S55: 17.77802835 | T55: 232.2421651 | U55: 2740.233357 | V55: 15.53377071 | W55: 49.6144933 | X55: 252.0461736 | Y55: 0.8500158326 | Z55: 165.0166342 | AA55: 0.5126218594 | AB55: 146.8706363 | AC55: 11826.47115
A56: Activos Intangibles | C56: 31 | D56: =SUM(D57:D63) -> 0 | E56: =SUM(E57:E63) -> 1010334.838 | F56: 61083.49699 | G56: 1537.412555 | H56: 57.91685966 | I56: 0 | J56: 21.6856649 | K56: 0 | L56: 61.92649349 | M56: 2.956304443 | N56: 0 | O56: 8335.180324 | P56: 0 | Q56: 24597.6159 | R56: 108047.708 | S56: 148.0289277 | T56: 27956.19856 | U56: 1515725.86 | V56: 185.6444035 | W56: 3331.892398 | X56: 0 | Y56: 0 | Z56: 223.7726685 | AA56: 856.2709 | AB56: 19.90554558 | AC56: 2762528.311
A57: Concesiones | B57: Anexo 1 | C57: 311 | D57: 0 | E57: 981792.2467 | F57: 59389.1518 | G57: 0 | H57: 0 | I57: 0 | J57: 0 | K57: 0 | L57: 0 | M57: 0 | N57: 0 | O57: 0 | P57: 0 | Q57: 0 | R57: 0 | S57: 0 | T57: 0 | U57: 1405702.143 | V57: 0 | W57: 0 | X57: 0 | Y57: 0 | Z57: 0 | AA57: 0 | AB57: 0 | AC57: 2446883.541
A58: Licencias | B58: Anexo 1 | C58: 312 | D58: 0 | E58: 0 | F58: 0 | G58: 0 | H58: 0 | I58: 0 | J58: 0 | K58: 0 | L58: 0 | M58: 0 | N58: 0 | O58: 0 | P58: 0 | Q58: 0 | R58: 0 | S58: 0 | T58: 0 | U58: 0 | V58: 0 | W58: 0 | X58: 0 | Y58: 0 | Z58: 0 | AA58: 0 | AB58: 0 | AC58: 0
A59: Patentes y propiedad intelectual | B59: Anexo 1 | C59: 313 | D59: 0 | E59: 0 | F59: 0 | G59: 0 | H59: 0 | I59: 0 | J59: 0 | K59: 0 | L59: 0 | M59: 0 | N59: 0 | O59: 0 | P59: 0 | Q59: 0 | R59: 0 | S59: 0 | T59: 0 | U59: 0 | V59: 0 | W59: 0 | X59: 0 | Y59: 0 | Z59: 0 | AA59: 0 | AB59: 0 | AC59: 0
A60: Software | B60: Anexo 1 | C60: 314 | D60: 0 | E60: 0 | F60: 0 | G60: 0 | H60: 0 | I60: 0 | J60: 0 | K60: 0 | L60: 0 | M60: 0 | N60: 0 | O60: 0 | P60: 0 | Q60: 0 | R60: 0 | S60: 0 | T60: 0 | U60: 0 | V60: 0 | W60: 0 | X60: 0 | Y60: 0 | Z60: 0 | AA60: 0 | AB60: 0 | AC60: 0
A61: Investigación y Desarrollo | B61: Anexo 1 | C61: 315 | D61: 0 | E61: 0 | F61: 0 | G61: 0 | H61: 0 | I61: 0 | J61: 0 | K61: 0 | L61: 0 | M61: 0 | N61: 0 | O61: 0 | P61: 0 | Q61: 0 | R61: 0 | S61: 0 | T61: 0 | U61: 0 | V61: 0 | W61: 0 | X61: 0 | Y61: 0 | Z61: 0 | AA61: 0 | AB61: 0 | AC61: 0
A62: Otros Activos Intangibles | B62: Anexo 1 | C62: 316 | D62: 0 | E62: 0 | F62: 0 | G62: 0 | H62: 0 | I62: 0 | J62: 0 | K62: 0 | L62: 0 | M62: 0 | N62: 0 | O62: 0 | P62: 0 | Q62: 0 | R62: 0 | S62: 0 | T62: 0 | U62: 0 | V62: 0 | W62: 0 | X62: 0 | Y62: 0 | Z62: 0 | AA62: 0 | AB62: 0 | AC62: 0
A63: Licencias y Software | B63: Anexo 1 | C63: 317 | D63: 0 | E63: 28542.59176 | F63: 1694.34519 | G63: 1537.412555 | H63: 57.91685966 | I63: 0 | J63: 21.6856649 | K63: 0 | L63: 61.92649349 | M63: 2.956304443 | N63: 0 | O63: 8335.180324 | P63: 0 | Q63: 24597.6159 | R63: 108047.708 | S63: 148.0289277 | T63: 27956.19856 | U63: 110023.7178 | V63: 185.6444035 | W63: 3331.892398 | X63: 0 | Y63: 0 | Z63: 223.7726685 | AA63: 856.2709 | AB63: 19.90554558 | AC63: 315644.7702
A64: Otros Activos No Corrientes | B64: Anexo 1 | C64: 32 | D64: 32.1744259 | E64: 27531.00284 | F64: 1807.869959 | G64: 2618.231286 | H64: 66.95759304 | I64: 0 | J64: 7.889985306 | K64: 0.5168716389 | L64: 181.7345078 | M64: 6.709665102 | N64: 39.72586605 | O64: 43147.54768 | P64: 5.861007051 | Q64: 67407.46781 | R64: 70304.91594 | S64: 3344.601463 | T64: 584.1611542 | U64: 98744.30496 | V64: 190.3523418 | W64: 9313.755477 | X64: 47777.87949 | Y64: 161.1290243 | Z64: 29618.94044 | AA64: 97.17261355 | AB64: 27533.49235 | AC64: 430524.3948
